[Event "*** SCC Grand Prix: Titled Tuesday Blitz"]
[Site "Chess.com"]
[Date "2020.07.21"]
[Round "1"]
[White "GGfrances"]
[Black "EvgenyT"]
[Result "0-1"]
[WhiteElo "2444"]
[BlackElo "2920"]
[TimeControl "180+1"]
[EndTime "10:08:29 PDT"]
[Termination "EvgenyT won by resignation"]

1. e4 {[%clk 0:02:57.1]} 1... e5 {[%clk 0:02:58.5]} 2. Nf3 {[%clk 0:02:56.8]}
2... Nc6 {[%clk 0:02:58.4]} 3. Bc4 {[%clk 0:02:56.5]} 3... Bc5 {[%clk
0:02:57.4]} 4. b4 {[%clk 0:02:56]} 4... Bxb4 {[%clk 0:02:55.3]} 5. c3 {[%clk
0:02:52.1]} 5... Be7 {[%clk 0:02:54.8]} 6. d4 {[%clk 0:02:45.2]} 6... Na5 {[%clk
0:02:49.1]} 7. Nxe5 {[%clk 0:02:43]} 7... Nxc4 {[%clk 0:02:48.3]} 8. Nxc4 {[%clk
0:02:43.9]} 8... d5 {[%clk 0:02:43.7]} 9. exd5 {[%clk 0:02:44.2]} 9... Qxd5
{[%clk 0:02:43.3]} 10. Ne3 {[%clk 0:02:43]} 10... Qd8 {[%clk 0:02:43]} 11. Ba3
{[%clk 0:02:39]} 11... Nf6 {[%clk 0:02:40]} 12. Bxe7 {[%clk 0:02:35.4]} 12...
Qxe7 {[%clk 0:02:39.9]} 13. O-O {[%clk 0:02:34.6]} 13... O-O {[%clk 0:02:39.6]}
14. Nd2 {[%clk 0:02:31.2]} 14... Be6 {[%clk 0:02:34.6]} 15. c4 {[%clk
0:02:25.8]} 15... c6 {[%clk 0:02:31.9]} 16. Nf3 {[%clk 0:02:26.1]} 16... Rad8
{[%clk 0:02:27.8]} 17. Rb1 {[%clk 0:02:22.9]} 17... b6 {[%clk 0:02:26.3]} 18.
Re1 {[%clk 0:02:19.9]} 18... Qc7 {[%clk 0:02:25.1]} 19. a4 {[%clk 0:02:17.2]}
19... Ng4 {[%clk 0:02:17.5]} 20. Qb3 {[%clk 0:02:12.9]} 20... Nxe3 {[%clk
0:01:54.6]} 21. fxe3 {[%clk 0:02:07.3]} 21... Rfe8 {[%clk 0:01:51.4]} 22. e4
{[%clk 0:02:03.5]} 22... Bg4 {[%clk 0:01:43]} 23. d5 {[%clk 0:01:57]} 23... cxd5
{[%clk 0:01:38.3]} 24. cxd5 {[%clk 0:01:53.4]} 24... Qf4 {[%clk 0:01:37.3]} 25.
Qe3 {[%clk 0:01:42.6]} 25... Qxe3+ {[%clk 0:01:34.5]} 26. Rxe3 {[%clk
0:01:42.7]} 26... Rxd5 {[%clk 0:01:35]} 27. exd5 {[%clk 0:01:38.7]} 27... Rxe3
{[%clk 0:01:34.7]} 28. a5 {[%clk 0:01:37.6]} 28... Bxf3 {[%clk 0:01:25.4]} 29.
gxf3 {[%clk 0:01:34.1]} 29... Rxf3 {[%clk 0:01:14.4]} 30. axb6 {[%clk
0:01:28.6]} 30... axb6 {[%clk 0:01:14]} 31. Rxb6 {[%clk 0:01:18.5]} 31... g6
{[%clk 0:01:09.3]} 32. Kg2 {[%clk 0:01:13.5]} 32... Rd3 {[%clk 0:01:08.8]} 33.
Rb8+ {[%clk 0:01:13.2]} 33... Kg7 {[%clk 0:01:08.4]} 34. Rd8 {[%clk 0:01:09]}
34... Kf6 {[%clk 0:01:07.4]} 35. d6 {[%clk 0:01:03.5]} 35... h5 {[%clk
0:01:00.2]} 36. Kf2 {[%clk 0:00:58.4]} 36... Rd5 {[%clk 0:00:57.3]} 37. Kg3
{[%clk 0:00:55.9]} 37... Ke6 {[%clk 0:00:56.1]} 38. h4 {[%clk 0:00:51.4]} 38...
Rxd6 {[%clk 0:00:55.1]} 39. Re8+ {[%clk 0:00:48.6]} 39... Kf5 {[%clk 0:00:54.2]}
40. Ra8 {[%clk 0:00:45.2]} 40... Rd3+ {[%clk 0:00:53]} 41. Kg2 {[%clk
0:00:45.5]} 41... Re3 {[%clk 0:00:48.8]} 42. Ra5+ {[%clk 0:00:42.8]} 42... Re5
{[%clk 0:00:44]} 43. Ra7 {[%clk 0:00:39.1]} 43... f6 {[%clk 0:00:43.3]} 44. Rf7
{[%clk 0:00:38.9]} 44... Re6 {[%clk 0:00:37.1]} 45. Kf3 {[%clk 0:00:36.6]} 45...
Ra6 {[%clk 0:00:36.4]} 46. Rf8 {[%clk 0:00:33.7]} 46... Ra3+ {[%clk 0:00:34.6]}
47. Kg2 {[%clk 0:00:33.2]} 47... Re3 {[%clk 0:00:33.5]} 48. Kf2 {[%clk
0:00:32.3]} 48... Re5 {[%clk 0:00:30.3]} 49. Kf3 {[%clk 0:00:32.2]} 49... Ke6
{[%clk 0:00:29.8]} 50. Re8+ {[%clk 0:00:30.3]} 50... Kf7 {[%clk 0:00:29.1]} 51.
Ra8 {[%clk 0:00:29.8]} 51... Rb5 {[%clk 0:00:28.3]} 52. Ra7+ {[%clk 0:00:30]}
52... Ke6 {[%clk 0:00:28.3]} 53. Ra6+ {[%clk 0:00:30.4]} 53... Kf5 {[%clk
0:00:28.3]} 54. Ra8 {[%clk 0:00:28.5]} 54... Rb3+ {[%clk 0:00:27.9]} 55. Kg2
{[%clk 0:00:28.8]} 55... g5 {[%clk 0:00:26.7]} 56. Ra5+ {[%clk 0:00:28.6]} 56...
Kg4 {[%clk 0:00:14.3]} 57. Ra4+ {[%clk 0:00:28]} 57... Kf5 {[%clk 0:00:14.1]}
58. Ra5+ {[%clk 0:00:28.4]} 58... Kg6 {[%clk 0:00:13.7]} 59. hxg5 {[%clk
0:00:27]} 59... f5 {[%clk 0:00:11.5]} 60. Ra8 {[%clk 0:00:24]} 60... Kxg5 {[%clk
0:00:11.2]} 61. Rg8+ {[%clk 0:00:23]} 61... Kf4 {[%clk 0:00:10.8]} 62. Rg7
{[%clk 0:00:22.8]} 62... h4 {[%clk 0:00:10.3]} 63. Rg8 {[%clk 0:00:20.6]} 63...
Rg3+ {[%clk 0:00:09.9]} 64. Rxg3 {[%clk 0:00:19.1]} 64... hxg3 {[%clk
0:00:09.9]} 65. Kg1 {[%clk 0:00:20]} 65... Kf3 {[%clk 0:00:09.8]} 66. Kf1 {[%clk
0:00:20.6]} 66... f4 {[%clk 0:00:09.9]} 67. Kg1 {[%clk 0:00:21.1]} 67... Kg4
{[%clk 0:00:09.9]} 68. Kg2 {[%clk 0:00:21.3]} 68... f3+ {[%clk 0:00:09.9]} 69.
Kg1 {[%clk 0:00:21.8]} 69... Kf4 {[%clk 0:00:09.7]} 70. Kf1 {[%clk 0:00:22.2]}
70... Ke3 {[%clk 0:00:09.4]} 0-1

[Event "*** SCC Grand Prix: Titled Tuesday Blitz"]
[Site "Chess.com"]
[Date "2020.07.21"]
[Round "1"]
[White "ChelsieMonica"]
[Black "N00bM3ster"]
[Result "1-0"]
[WhiteElo "2406"]
[BlackElo "2758"]
[TimeControl "180+1"]
[EndTime "10:08:30 PDT"]
[Termination "ChelsieMonica won by resignation"]

1. c4 {[%clk 0:02:59.3]} 1... e5 {[%clk 0:02:58.6]} 2. Nc3 {[%clk 0:02:59.2]}
2... Nf6 {[%clk 0:02:54.1]} 3. g3 {[%clk 0:02:55.7]} 3... d5 {[%clk 0:02:47.1]}
4. cxd5 {[%clk 0:02:55.1]} 4... Nxd5 {[%clk 0:02:48]} 5. Bg2 {[%clk 0:02:55.3]}
5... Be6 {[%clk 0:02:38.6]} 6. Nf3 {[%clk 0:02:42.5]} 6... Nc6 {[%clk
0:02:37.8]} 7. O-O {[%clk 0:02:34.2]} 7... f6 {[%clk 0:02:26.9]} 8. d3 {[%clk
0:02:27.7]} 8... Bc5 {[%clk 0:02:25.9]} 9. Na4 {[%clk 0:02:24]} 9... Bb6 {[%clk
0:02:21.2]} 10. Nxb6 {[%clk 0:02:23.4]} 10... axb6 {[%clk 0:02:20.9]} 11. a3
{[%clk 0:02:22.1]} 11... b5 {[%clk 0:02:18.5]} 12. Qd2 {[%clk 0:02:22]} 12... b4
{[%clk 0:02:17.7]} 13. a4 {[%clk 0:02:18.5]} 13... Qd7 {[%clk 0:02:12]} 14. Re1
{[%clk 0:01:53]} 14... O-O {[%clk 0:01:40.9]} 15. Qc2 {[%clk 0:01:49.5]} 15...
Na5 {[%clk 0:01:17.3]} 16. Nd2 {[%clk 0:01:47.1]} 16... Nb6 {[%clk 0:01:06]} 17.
b3 {[%clk 0:01:40]} 17... Bd5 {[%clk 0:01:06]} 18. Bb2 {[%clk 0:01:33.3]} 18...
Bxg2 {[%clk 0:01:04.3]} 19. Kxg2 {[%clk 0:01:34.2]} 19... Nd5 {[%clk 0:01:00.7]}
20. Rac1 {[%clk 0:01:33.5]} 20... b6 {[%clk 0:01:00.3]} 21. Nc4 {[%clk
0:01:30.3]} 21... Nxc4 {[%clk 0:00:58.8]} 22. Qxc4 {[%clk 0:01:31.2]} 22... Qf7
{[%clk 0:00:51.9]} 23. e4 {[%clk 0:01:29.4]} 23... Ne7 {[%clk 0:00:52.4]} 24.
Qxb4 {[%clk 0:01:27.1]} 24... Ng6 {[%clk 0:00:47.1]} 25. Rc6 {[%clk 0:01:21.5]}
25... Qd7 {[%clk 0:00:46.2]} 26. Qc4+ {[%clk 0:01:19.5]} 26... Rf7 {[%clk
0:00:44.6]} 27. Rc1 {[%clk 0:01:19]} 27... Rc8 {[%clk 0:00:41.8]} 28. Rxb6
{[%clk 0:01:15.6]} 28... Qg4 {[%clk 0:00:37.9]} 29. Rc6 {[%clk 0:00:56.1]} 29...
Nf4+ {[%clk 0:00:36.7]} 30. Kf1 {[%clk 0:00:39]} 30... Qe2+ {[%clk 0:00:33]} 31.
Kg1 {[%clk 0:00:39.1]} 31... Nh3+ {[%clk 0:00:30.8]} 32. Kg2 {[%clk 0:00:39.1]}
32... Qxf2+ {[%clk 0:00:22.7]} 33. Kxh3 {[%clk 0:00:37.8]} 33... Qxb2 {[%clk
0:00:23.6]} 34. Qe6 {[%clk 0:00:33.1]} 34... Rf8 {[%clk 0:00:19]} 35. Rxc7
{[%clk 0:00:33.1]} 35... Qe2 {[%clk 0:00:10.4]} 36. R7c2 {[%clk 0:00:31.5]}
36... Qh5+ {[%clk 0:00:09.7]} 37. Kg2 {[%clk 0:00:31.8]} 37... h6 {[%clk
0:00:08.2]} 38. Rf2 {[%clk 0:00:26]} 38... Rd8 {[%clk 0:00:07.9]} 39. Rc7 {[%clk
0:00:25.3]} 39... Rf8 {[%clk 0:00:07.1]} 40. Re7 {[%clk 0:00:24.6]} 40... Kh8
{[%clk 0:00:06.8]} 41. Re8 {[%clk 0:00:24.4]} 41... Qg6 {[%clk 0:00:04.5]} 42.
h4 {[%clk 0:00:23.9]} 42... Rxe8 {[%clk 0:00:04.3]} 43. Qxe8+ {[%clk 0:00:24.8]}
43... Kh7 {[%clk 0:00:05]} 44. Qe6 {[%clk 0:00:25.1]} 44... Qh5 {[%clk
0:00:05.3]} 45. Qf5+ {[%clk 0:00:25.4]} 45... Qxf5 {[%clk 0:00:05.9]} 46. exf5
{[%clk 0:00:26.1]} 46... Rb7 {[%clk 0:00:06.8]} 47. Rb2 {[%clk 0:00:26.2]} 47...
Rb4 {[%clk 0:00:07.1]} 48. Kf3 {[%clk 0:00:25.9]} 48... Kh8 {[%clk 0:00:07.6]}
49. Ke3 {[%clk 0:00:26.5]} 49... Kg8 {[%clk 0:00:08.3]} 50. a5 {[%clk
0:00:27.1]} 50... Kf7 {[%clk 0:00:08.6]} 51. a6 {[%clk 0:00:27.5]} 51... Rb8
{[%clk 0:00:08.5]} 52. Ra2 {[%clk 0:00:27.8]} 52... Ke7 {[%clk 0:00:08.6]} 53.
a7 {[%clk 0:00:28.5]} 53... Ra8 {[%clk 0:00:09.2]} 54. Ke4 {[%clk 0:00:29]}
54... Kd6 {[%clk 0:00:09.8]} 55. Ra5 {[%clk 0:00:27.9]} 55... Kc6 {[%clk
0:00:09.9]} 56. b4 {[%clk 0:00:28.8]} 56... Kb6 {[%clk 0:00:10.1]} 57. Kd5
{[%clk 0:00:29.7]} 57... Kc7 {[%clk 0:00:08.9]} 58. b5 {[%clk 0:00:29.5]} 58...
Kb6 {[%clk 0:00:09.2]} 59. Ra1 {[%clk 0:00:29.7]} 59... Kxb5 {[%clk 0:00:09.7]}
60. Ke6 {[%clk 0:00:30.4]} 60... Kc5 {[%clk 0:00:09.8]} 61. Kf7 {[%clk
0:00:30.8]} 61... Kd4 {[%clk 0:00:10.3]} 62. Kxg7 {[%clk 0:00:31.3]} 62... Kxd3
{[%clk 0:00:11]} 63. Kxf6 {[%clk 0:00:32]} 63... e4 {[%clk 0:00:11.6]} 64. Kg6
{[%clk 0:00:32.4]} 64... e3 {[%clk 0:00:12.5]} 65. Kxh6 {[%clk 0:00:32.7]} 65...
e2 {[%clk 0:00:12.7]} 66. g4 {[%clk 0:00:33.3]} 66... Kd2 {[%clk 0:00:13]} 67.
g5 {[%clk 0:00:33.7]} 67... Rxa7 {[%clk 0:00:13.2]} 68. Rxa7 {[%clk 0:00:33]}
68... e1=Q {[%clk 0:00:12.9]} 69. h5 {[%clk 0:00:32.8]} 69... Qe5 {[%clk
0:00:11.3]} 70. Rf7 {[%clk 0:00:33]} 70... Qh8+ {[%clk 0:00:11.2]} 71. Kg6
{[%clk 0:00:33.3]} 71... Qg8+ {[%clk 0:00:10.9]} 72. Rg7 {[%clk 0:00:33.6]}
72... Qe8+ {[%clk 0:00:11]} 73. Kh6 {[%clk 0:00:34.3]} 73... Ke3 {[%clk
0:00:10.5]} 74. f6 {[%clk 0:00:34.1]} 74... Kf4 {[%clk 0:00:11]} 75. f7 {[%clk
0:00:34]} 75... Qe6+ {[%clk 0:00:10]} 76. g6 {[%clk 0:00:33.6]} 76... Qd6 {[%clk
0:00:08.8]} 77. Rg8 {[%clk 0:00:33.6]} 77... Kg4 {[%clk 0:00:06.5]} 78. f8=Q
{[%clk 0:00:33.8]} 78... Qe6 {[%clk 0:00:06.7]} 79. Qc8 {[%clk 0:00:33.1]} 79...
Qxc8 {[%clk 0:00:06.4]} 80. Rxc8 {[%clk 0:00:34]} 1-0

[Event "*** SCC Grand Prix: Titled Tuesday Blitz"]
[Site "Chess.com"]
[Date "2020.07.21"]
[Round "1"]
[White "Zmof"]
[Black "White_Ghost"]
[Result "1-0"]
[WhiteElo "2167"]
[BlackElo "2537"]
[TimeControl "180+1"]
[EndTime "10:08:35 PDT"]
[Termination "Zmof won by checkmate"]

1. e4 {[%clk 0:03:00.9]} 1... e5 {[%clk 0:02:59.7]} 2. Bc4 {[%clk 0:03:00.4]}
2... Nf6 {[%clk 0:02:59.4]} 3. d3 {[%clk 0:03:00.3]} 3... c6 {[%clk 0:02:54.3]}
4. Nf3 {[%clk 0:03:00.1]} 4... d5 {[%clk 0:02:49.3]} 5. Bb3 {[%clk 0:03:00.3]}
5... Bg4 {[%clk 0:02:44.7]} 6. h3 {[%clk 0:02:56.4]} 6... Bxf3 {[%clk 0:02:45]}
7. Qxf3 {[%clk 0:02:55.8]} 7... Be7 {[%clk 0:02:43.5]} 8. O-O {[%clk 0:02:54.4]}
8... Na6 {[%clk 0:02:37.3]} 9. exd5 {[%clk 0:02:40.5]} 9... cxd5 {[%clk
0:02:35.7]} 10. Re1 {[%clk 0:02:32.8]} 10... e4 {[%clk 0:02:33.8]} 11. dxe4
{[%clk 0:02:25.4]} 11... dxe4 {[%clk 0:02:32.4]} 12. Ba4+ {[%clk 0:02:22.7]}
12... Kf8 {[%clk 0:02:25.8]} 13. Qe2 {[%clk 0:02:12]} 13... Nc5 {[%clk
0:02:21.7]} 14. Bb3 {[%clk 0:02:11.3]} 14... Nxb3 {[%clk 0:02:06.5]} 15. axb3
{[%clk 0:02:11.9]} 15... a6 {[%clk 0:01:36.3]} 16. Nc3 {[%clk 0:02:11.7]} 16...
Bb4 {[%clk 0:01:36.5]} 17. Bg5 {[%clk 0:02:09.1]} 17... Bxc3 {[%clk 0:01:20.9]}
18. bxc3 {[%clk 0:02:08.7]} 18... h6 {[%clk 0:01:17.4]} 19. Bxf6 {[%clk
0:02:06.8]} 19... Qxf6 {[%clk 0:01:18.3]} 20. Qxe4 {[%clk 0:02:02.9]} 20... g6
{[%clk 0:01:18.6]} 21. Qe5 {[%clk 0:01:57.6]} 21... Kg7 {[%clk 0:01:17.6]} 22.
Rad1 {[%clk 0:01:55]} 22... Qxe5 {[%clk 0:01:10.6]} 23. Rxe5 {[%clk 0:01:54.5]}
23... Rhd8 {[%clk 0:01:11.5]} 24. Red5 {[%clk 0:01:54.1]} 24... Rxd5 {[%clk
0:01:11.6]} 25. Rxd5 {[%clk 0:01:54.3]} 25... Rc8 {[%clk 0:01:05.1]} 26. c4
{[%clk 0:01:53.1]} 26... b5 {[%clk 0:01:05.4]} 27. cxb5 {[%clk 0:01:51.8]} 27...
axb5 {[%clk 0:01:06.3]} 28. Rxb5 {[%clk 0:01:50.4]} 28... Rxc2 {[%clk
0:01:06.8]} 29. g4 {[%clk 0:01:47.2]} 29... Rb2 {[%clk 0:01:02.5]} 30. Kg2
{[%clk 0:01:46.7]} 30... Kg8 {[%clk 0:01:00.5]} 31. Kf3 {[%clk 0:01:43.6]} 31...
Kg7 {[%clk 0:01:00.7]} 32. h4 {[%clk 0:01:43.2]} 32... Kg8 {[%clk 0:01:00.7]}
33. h5 {[%clk 0:01:37.1]} 33... Kg7 {[%clk 0:01:00.3]} 34. hxg6 {[%clk
0:01:36.3]} 34... Kxg6 {[%clk 0:01:01.2]} 35. Ke3 {[%clk 0:01:36.8]} 35... Kf6
{[%clk 0:00:58.8]} 36. f3 {[%clk 0:01:35.1]} 36... Rb1 {[%clk 0:00:56.6]} 37.
Rb6+ {[%clk 0:01:34.5]} 37... Kg5 {[%clk 0:00:55.8]} 38. Rb5+ {[%clk 0:01:30.1]}
38... Kg6 {[%clk 0:00:54.3]} 39. Kf4 {[%clk 0:01:30.5]} 39... f6 {[%clk
0:00:52.1]} 40. Rb6 {[%clk 0:01:24.7]} 40... Rb2 {[%clk 0:00:49.6]} 41. b4
{[%clk 0:01:24.9]} 41... Rb3 {[%clk 0:00:49.4]} 42. b5 {[%clk 0:01:23.4]} 42...
Kg7 {[%clk 0:00:49.6]} 43. Ke4 {[%clk 0:01:18.9]} 43... Kg6 {[%clk 0:00:48.3]}
44. Rb8 {[%clk 0:01:09.8]} 44... Rb4+ {[%clk 0:00:47.1]} 45. Kd5 {[%clk
0:01:08.8]} 45... Kg5 {[%clk 0:00:46.1]} 46. Rg8+ {[%clk 0:01:07.3]} 46... Kf4
{[%clk 0:00:46]} 47. Kc5 {[%clk 0:01:07.8]} 47... Rb1 {[%clk 0:00:44.2]} 48. Rg6
{[%clk 0:01:07.3]} 48... Kxf3 {[%clk 0:00:44.1]} 49. Rxf6+ {[%clk 0:01:07.3]}
49... Kxg4 {[%clk 0:00:40.7]} 50. Rxh6 {[%clk 0:01:07.4]} 50... Kf5 {[%clk
0:00:37.4]} 51. Rd6 {[%clk 0:01:07.3]} 51... Ke5 {[%clk 0:00:37.3]} 52. Rd2
{[%clk 0:01:07.3]} 52... Rc1+ {[%clk 0:00:36.7]} 53. Kb6 {[%clk 0:01:07.4]}
53... Ke6 {[%clk 0:00:34.4]} 54. Kb7 {[%clk 0:01:07.3]} 54... Rb1 {[%clk
0:00:34]} 55. b6 {[%clk 0:01:07.6]} 55... Rc1 {[%clk 0:00:33.9]} 56. Kb8 {[%clk
0:01:07.4]} 56... Rb1 {[%clk 0:00:31.7]} 57. b7 {[%clk 0:01:07.8]} 57... Rc1
{[%clk 0:00:29.9]} 58. Ra2 {[%clk 0:01:04.1]} 58... Kd7 {[%clk 0:00:14.4]} 59.
Ka8 {[%clk 0:01:01]} 59... Rb1 {[%clk 0:00:13.8]} 60. b8=Q {[%clk 0:01:00.5]}
60... Rxb8+ {[%clk 0:00:14.5]} 61. Kxb8 {[%clk 0:01:00.5]} 61... Kc6 {[%clk
0:00:15.4]} 62. Ra7 {[%clk 0:00:58.2]} 62... Kb5 {[%clk 0:00:15.6]} 63. Kb7
{[%clk 0:00:57.7]} 63... Kc5 {[%clk 0:00:15.8]} 64. Ra6 {[%clk 0:00:57.5]} 64...
Kb5 {[%clk 0:00:16.7]} 65. Rh6 {[%clk 0:00:56.2]} 65... Kc5 {[%clk 0:00:17.6]}
66. Rg6 {[%clk 0:00:56.6]} 66... Kd5 {[%clk 0:00:17.5]} 67. Kc7 {[%clk
0:00:56.2]} 67... Ke5 {[%clk 0:00:17.9]} 68. Rh6 {[%clk 0:00:54.7]} 68... Kd5
{[%clk 0:00:18.8]} 69. Ra6 {[%clk 0:00:53.4]} 69... Ke5 {[%clk 0:00:19.7]} 70.
Kd7 {[%clk 0:00:53.7]} 70... Kf5 {[%clk 0:00:19.7]} 71. Ke7 {[%clk 0:00:54.2]}
71... Kg5 {[%clk 0:00:19.5]} 72. Kf7 {[%clk 0:00:54.6]} 72... Kf5 {[%clk
0:00:19.6]} 73. Ra5+ {[%clk 0:00:54.1]} 73... Ke4 {[%clk 0:00:19.8]} 74. Ke6
{[%clk 0:00:54.3]} 74... Kd4 {[%clk 0:00:20.3]} 75. Rh5 {[%clk 0:00:53.3]} 75...
Kc4 {[%clk 0:00:21.2]} 76. Kd6 {[%clk 0:00:53.5]} 76... Kb4 {[%clk 0:00:21.7]}
77. Kc6 {[%clk 0:00:54]} 77... Ka4 {[%clk 0:00:21.7]} 78. Kb6 {[%clk 0:00:54.3]}
78... Kb4 {[%clk 0:00:22.3]} 79. Rh4+ {[%clk 0:00:54.7]} 79... Kc3 {[%clk
0:00:22.9]} 80. Kc5 {[%clk 0:00:55.1]} 80... Kd3 {[%clk 0:00:23.8]} 81. Ra4
{[%clk 0:00:54.3]} 81... Ke3 {[%clk 0:00:24.7]} 82. Kd5 {[%clk 0:00:54.7]} 82...
Kf3 {[%clk 0:00:25.1]} 83. Ke5 {[%clk 0:00:55.2]} 83... Kg3 {[%clk 0:00:25.5]}
84. Kf5 {[%clk 0:00:55.6]} 84... Kh3 {[%clk 0:00:25.9]} 85. Kg5 {[%clk
0:00:55.9]} 85... Kg3 {[%clk 0:00:26.3]} 86. Ra3+ {[%clk 0:00:56.5]} 86... Kf2
{[%clk 0:00:26.2]} 87. Kf4 {[%clk 0:00:56.6]} 87... Ke2 {[%clk 0:00:27.1]} 88.
Rh3 {[%clk 0:00:56.6]} 88... Kf2 {[%clk 0:00:25.2]} 89. Rh2+ {[%clk 0:00:56.2]}
89... Kg1 {[%clk 0:00:25.6]} 90. Ra2 {[%clk 0:00:55.8]} 90... Kf1 {[%clk
0:00:25.9]} 91. Ke3 {[%clk 0:00:55.9]} 91... Kg1 {[%clk 0:00:26.2]} 92. Kf3
{[%clk 0:00:56.3]} 92... Kh1 {[%clk 0:00:26.5]} 93. Kg3 {[%clk 0:00:56.8]} 93...
Kg1 {[%clk 0:00:27.1]} 94. Ra1# {[%clk 0:00:57.4]} 1-0

[Event "*** SCC Grand Prix: Titled Tuesday Blitz"]
[Site "Chess.com"]
[Date "2020.07.21"]
[Round "1"]
[White "londonkid"]
[Black "Ramil_Faizrakhmanov"]
[Result "0-1"]
[WhiteElo "2403"]
[BlackElo "2804"]
[TimeControl "180+1"]
[EndTime "10:08:38 PDT"]
[Termination "Ramil_Faizrakhmanov won by resignation"]

1. d4 {[%clk 0:03:00.9]} 1... Nf6 {[%clk 0:01:37.8]} 2. c4 {[%clk 0:03:01.1]}
2... e6 {[%clk 0:01:37.9]} 3. Nf3 {[%clk 0:03:01.2]} 3... b6 {[%clk 0:01:38]} 4.
g3 {[%clk 0:03:01.2]} 4... Bb7 {[%clk 0:01:38.4]} 5. Bg2 {[%clk 0:03:01.4]} 5...
Bb4+ {[%clk 0:01:39]} 6. Nbd2 {[%clk 0:03:01.5]} 6... O-O {[%clk 0:01:38.3]} 7.
O-O {[%clk 0:03:01.8]} 7... Bxd2 {[%clk 0:01:33.9]} 8. Qxd2 {[%clk 0:03:02.3]}
8... d6 {[%clk 0:01:34.1]} 9. b3 {[%clk 0:03:01.3]} 9... Nbd7 {[%clk 0:01:34.1]}
10. Bb2 {[%clk 0:03:01.7]} 10... Qe7 {[%clk 0:01:34.4]} 11. Qc2 {[%clk
0:02:50.9]} 11... e5 {[%clk 0:01:33.3]} 12. dxe5 {[%clk 0:02:48.8]} 12... dxe5
{[%clk 0:01:31.7]} 13. Rad1 {[%clk 0:02:47.8]} 13... Be4 {[%clk 0:01:24.1]} 14.
Qc3 {[%clk 0:02:47]} 14... Rfe8 {[%clk 0:01:22.1]} 15. Bh3 {[%clk 0:02:45.5]}
15... Rad8 {[%clk 0:01:14.7]} 16. Nd2 {[%clk 0:02:31.6]} 16... Ba8 {[%clk
0:01:13.3]} 17. Bg2 {[%clk 0:02:19.2]} 17... Bxg2 {[%clk 0:01:12.5]} 18. Kxg2
{[%clk 0:02:20.1]} 18... h6 {[%clk 0:01:13.1]} 19. f3 {[%clk 0:02:19.9]} 19...
Nc5 {[%clk 0:01:12.8]} 20. Ba3 {[%clk 0:02:14]} 20... a5 {[%clk 0:01:12.1]} 21.
e4 {[%clk 0:02:11.3]} 21... Rd3 {[%clk 0:01:05.7]} 22. Qc2 {[%clk 0:02:00.7]}
22... Red8 {[%clk 0:01:06.1]} 23. Nb1 {[%clk 0:01:59.1]} 23... Qd7 {[%clk
0:01:00.9]} 24. Nc3 {[%clk 0:01:51.2]} 24... Rd2+ {[%clk 0:00:49.8]} 25. Rxd2
{[%clk 0:01:49.8]} 25... Qxd2+ {[%clk 0:00:50.7]} 26. Qxd2 {[%clk 0:01:44.2]}
26... Rxd2+ {[%clk 0:00:51.6]} 27. Rf2 {[%clk 0:01:44.7]} 27... Rd3 {[%clk
0:00:47.7]} 28. Nb5 {[%clk 0:01:37.5]} 28... Ne6 {[%clk 0:00:46.1]} 29. Bb2
{[%clk 0:01:32.8]} 29... Nd7 {[%clk 0:00:42.7]} 30. f4 {[%clk 0:01:31]} 30...
exf4 {[%clk 0:00:41]} 31. gxf4 {[%clk 0:01:31.6]} 31... c6 {[%clk 0:00:38.6]}
32. f5 {[%clk 0:01:21]} 32... cxb5 {[%clk 0:00:36.9]} 33. fxe6 {[%clk 0:01:21]}
33... fxe6 {[%clk 0:00:37.8]} 34. cxb5 {[%clk 0:01:21]} 34... Nc5 {[%clk
0:00:36]} 35. Re2 {[%clk 0:01:15.7]} 35... Kf7 {[%clk 0:00:30.8]} 36. Be5 {[%clk
0:01:15.6]} 36... a4 {[%clk 0:00:20.4]} 37. b4 {[%clk 0:01:10.2]} 37... Nd7
{[%clk 0:00:20.3]} 38. Bc7 {[%clk 0:01:10.2]} 38... e5 {[%clk 0:00:16.8]} 39.
Rf2+ {[%clk 0:01:06.6]} 39... Ke6 {[%clk 0:00:17.7]} 40. Rc2 {[%clk 0:01:03.2]}
40... Rd4 {[%clk 0:00:17.8]} 41. Rc6+ {[%clk 0:01:03]} 41... Ke7 {[%clk
0:00:18]} 42. Bxb6 {[%clk 0:01:02.2]} 42... Rxb4 {[%clk 0:00:18]} 43. Rc7 {[%clk
0:00:44.1]} 43... Rxb5 {[%clk 0:00:16.9]} 44. Bf2 {[%clk 0:00:41.2]} 44... Rb2
{[%clk 0:00:13.6]} 45. a3 {[%clk 0:00:41.4]} 45... Ra2 {[%clk 0:00:13.6]} 46.
Kf1 {[%clk 0:00:33.8]} 46... Kd6 {[%clk 0:00:14.5]} 47. Rc3 {[%clk 0:00:29.1]}
47... Nf6 {[%clk 0:00:14.6]} 48. Rd3+ {[%clk 0:00:29.3]} 48... Ke6 {[%clk
0:00:14.8]} 49. Re3 {[%clk 0:00:29.7]} 49... Rb2 {[%clk 0:00:14.8]} 50. Rd3
{[%clk 0:00:28.4]} 50... Nxe4 {[%clk 0:00:14.2]} 51. Ba7 {[%clk 0:00:28.5]}
51... Rxh2 {[%clk 0:00:13.7]} 52. Rd8 {[%clk 0:00:28.8]} 52... Ra2 {[%clk
0:00:13.8]} 53. Re8+ {[%clk 0:00:28.9]} 53... Kd5 {[%clk 0:00:13.7]} 54. Bb8
{[%clk 0:00:28.6]} 54... Nd2+ {[%clk 0:00:11.2]} 55. Ke2 {[%clk 0:00:27.8]}
55... Nc4+ {[%clk 0:00:11.4]} 56. Kd3 {[%clk 0:00:28.3]} 56... Rxa3+ {[%clk
0:00:11.9]} 57. Kc2 {[%clk 0:00:28.3]} 57... Rb3 {[%clk 0:00:12.5]} 58. Rd8+
{[%clk 0:00:28.5]} 58... Ke6 {[%clk 0:00:12.5]} 59. Ba7 {[%clk 0:00:28.8]} 59...
Rb7 {[%clk 0:00:12.4]} 60. Bf2 {[%clk 0:00:28.2]} 60... a3 {[%clk 0:00:12.7]}
61. Kc3 {[%clk 0:00:28.4]} 61... Nd6 {[%clk 0:00:11.2]} 62. Ra8 {[%clk
0:00:28.5]} 62... Ne4+ {[%clk 0:00:11.3]} 63. Kd3 {[%clk 0:00:28.9]} 63... Nxf2+
{[%clk 0:00:12.2]} 64. Ke2 {[%clk 0:00:28.5]} 64... Ne4 {[%clk 0:00:12.4]} 65.
Ke3 {[%clk 0:00:28.8]} 65... Nd6 {[%clk 0:00:12.3]} 66. Ra6 {[%clk 0:00:29.3]}
66... Rb3+ {[%clk 0:00:12]} 67. Kd2 {[%clk 0:00:29.7]} 67... Rb2+ {[%clk
0:00:12.3]} 68. Kc3 {[%clk 0:00:29.9]} 68... Rh2 {[%clk 0:00:12.7]} 69. Kb3
{[%clk 0:00:30.1]} 69... a2 {[%clk 0:00:12.4]} 70. Rxa2 {[%clk 0:00:29.2]} 70...
Rxa2 {[%clk 0:00:12.7]} 71. Kxa2 {[%clk 0:00:30.1]} 0-1